Workbook

Sheet intro

Sheet Welkom
D2: CO2-tool gft-verwerking 2.0
C13: Bedrijfsgegevens
D14: Naam bedrijf
D15: Locatie
D16: Jaar invoer

Sheet Input
E2: CO2-tool gft-verwerking 2.0
I4: Aanvoer van afval | L4: Transportafstand | T4: Bedrijf: | U4: =CONCATENATE(Naam_bedrijf, ", ",Locatie) -> ,
K5: Ton/ jaar | L5: (km) | T5: Jaar: | U5: =jaartal -> 0
J6: Truck | K6: 0 | L6: 0
J7: Schip | K7: 0 | L7: 0
J8: Trein | K8: 0 | L8: 0
H11: Input afval | N11: Biogaspotentieel
J12: Totale hoeveelheid (ton per jaar) | K12: =SUM(K14:K16) -> 0 | N12: per deelstroom
N13: (Nm3/ton vers) | O13: indicatie
J14: Gft (ton per jaar) | K14: 0 | L14: =CONCATENATE(" (=",ROUND((K14/K12)*100,0),"%)") ->  | M14: gft | N14: 75 | O14: =CONCATENATE(" (",Defaults!U7," )") -> (75 )
J15: Analoog (ton per jaar) | K15: 0 | L15: =CONCATENATE(" (=",ROUND((K15/K12)*100,0),"%)") ->  | M15: analoog | N15: 175 | O15: =CONCATENATE(" (",Defaults!U8," )") -> (40-200 )
J16: Groenafval (ton per jaar) | K16: 0 | L16: =CONCATENATE(" (=",ROUND((K16/K12)*100,0),"%)") ->  | M16: groenafval | N16: 125 | O16: =CONCATENATE(" (",Defaults!U9," )") -> (40-200 )
H18: Energieverbruik van installatie (totaal per jaar)
K19: Elektriciteit, grijs | L19: 0 | M19: 2
K20: Elektriciteit, groene stroom mix | L20: 0 | M20: 1
K21: Elektriciteit, groene stroom met eigen CO2-factor | L21: 0 | M21: 1 | N21: CO2-factor | O21: 50
N22: (g CO2-eq/kWh)
K23: Elektriciteit, windenergie | L23: 0 | M23: 2
K24: Elektriciteit, zonne-energie (PV) | L24: 0 | M24: 1
K25: Hout | L25: 0 | M25: 2
K26: Diesel | L26: 0 | M26: L
K27: Gas | L27: 0 | M27: Nm3
K28: Groen gas | L28: 0 | M28: Nm3
K29: Stortgas | L29: 0 | M29: Nm3
K30: Warmte uit AEC | L30: 0 | M30: GJ
N38: =CONCATENATE("Resultaat voor de totale hoeveelheid verwerkt gft-afval: ",ROUND(CO2resultgealloceerd,0),"") ->  | O38: kg CO2-eq. | U38: =IF(K12=0,"Per ton verwerkt gft-afval: 0",CONCATENATE("Per ton verwerkt gft-afval: ",ROUND(CO2resultpertongealloceerd,0))) -> Per ton verwerkt gft-afval: 0 | V38: kg CO2-equivalenten
N39: =CONCATENATE("Resultaat voor de totale hoeveelheid verwerkt afval: ",ROUND(CO2resultaat,0),"") -> Resultaat voor de totale hoeveelheid verwerkt afval: 0 | O39: kg CO2-eq. | U39: =IF(K12=0,"Per ton verwerkt afval: 0",CONCATENATE("Per ton verwerkt afval: ",ROUND(CO2resultaat_per_ton,0))) -> Per ton verwerkt afval: 0 | V39: kg CO2-equivalenten
C72: Teksten:
C73: kWh | D73: (waarde 1)
C74: MWh | D74: (waarde 2)
C76: kg | D76: (waarde 1)
C77: ton | D77: (waarde 2)

Sheet Processen & Producten
E2: CO2-tool gft-verwerking 2.0
R4: Bedrijf: | S4: =CONCATENATE(Naam_bedrijf, ", ",Locatie) -> ,
R5: Jaar: | S5: =jaartal -> 0
S7: Toepassing biogas
P8: WKK
T9: Totale hvh biogas naar WKK (m3) | U9: 0
T10: Opbrengst warmte uit WKK (MJ) | U10: 0
T11: Opbrengst elektriciteit uit WKK (kWh) | U11: 0
P13: Groengas
J14: Naar compostering (incl. bypass): | T14: Totale hvh biogas opgewerkt naar groengas (indicatief) (m3) | U14: 0
E15: Naar vergister: | J15: 0 | K15: Gft (ton/jaar) | T15: Hoeveelheid groengas (m3) | U15: 0
E16: Gft (ton/jaar) | F16: 0 | J16: 0 | K16: Analoog (ton/jaar) | T16: Biogas opwerkmethode
E17: Analoog (ton/jaar) | F17: 0 | J17: 0 | K17: Groenafval (ton/jaar) | T17: CO2-winning uit biogas (kg) | U17: 0
E18: Groenafval (ton/jaar) | F18: 0 | T18: Levering groengas aan aardgasnet (%) | U18: =1-SUM(U19:U20) -> 0.85
T19: Groengas als vervanging van diesel (%) | U19: 0.1
T20: Overige toepassing groengas (%) | U20: 0.05 | V20: kg CO2 eq / m3 groengas | W20: 0
C21: Vergisting | J21: Compostering
D22: Totale hoeveelheid (ton/jaar) | E22: =SUM(F16:F18) -> 0 | H22: Digestaat (ton/jaar) | K22: Totale hoeveelheid (ton/jaar) | L22: =SUM(H24,J15:J17) -> 0 | P22: Terugwinning warmte uit proceslucht
D23: CH4 emissie (g/ton afval) | E23: 500 | F23: =CONCATENATE(" (",Defaults!M25,")") -> (500) | K23: CH4 emissie (g/ton afval) | L23: 161 | M23: =CONCATENATE(" (",Defaults!S25,")") -> (161) | T23: Geleverde warmte (MJ) | U23: 0
D24: N2O emissie (g/ton afval) | E24: 20 | F24: =CONCATENATE(" (",Defaults!M26,")") -> (20) | H24: 0 | K24: N2O emissie (g/ton afval) | L24: 72 | M24: =CONCATENATE(" (",Defaults!S26,")") -> (72)
P25: Product naar bio-energiecentrale
S26: Hoeveelheid (ton / jaar) | T26: 0
S27: droge stof in product (%) | T27: 0 | V27: calorische waarde product
S28: organisch stof in product (% van droge stof) | T28: 0 | V28: (MJ/kg) | W28: =((1-(0.01*T27))*-2.26)+(T27*0.01*T28*0.01)*18.8 -> -2.26
F29: Compost | S29: Rendement thermisch (%) | T29: 0.35 | U29: =CONCATENATE(" (",Defaults!H32*100,"%)") -> (35%)
S30: Rendement elektrisch (%) | T30: 0.25 | U30: =CONCATENATE(" (",Defaults!H33*100,"%)") -> (25%)
I31: Totale opbrengst compost per jaar (ton): | J31: 0
I32: Opbrengst (kg/ton afval) | J32: =1000*J31/Input!$K$12 ->  | P32: Alternatieve opwerking
V33: Netto kg
F34: Transport van compost | H34: Ton per | I34: Afstand | Q34: Deelstroom | S34: ton (totaal) | T34: Opwerkingsproces | V34: CO2 eq
H35: jaar | I35: (km)
G36: Vrachtwagen met oplegger | H36: =J31-H37-H38 -> 0 | I36: 0
G37: Enkele vrachtwagen | H37: 0 | I37: 0
G38: Schip | H38: 0 | I38: 0
Q40: Surplus water naar RWZI
H41: Compost | T41: Water (m3) | U41: 0
E42: Kenmerken compost | L42: Marktverdeling compost | Q42: Residu naar AEC / stort
E43: droge stof (d.s., %) | F43: 67 | G43: =CONCATENATE(" (",Defaults!K50,")") -> (67) | L43: Landbouw (akkerbouw, vollegronds tuinbouw, boomteelt) | M43: 0.69 | N43: =CONCATENATE(" (",Defaults!Q48*100,"%)") -> (69%) | T43: Afvalenergiecentrale | U43: 0 | V43: 1
E44: Organische stof (O.S.) (g/kg ds) | F44: 331 | G44: =CONCATENATE(" (",Defaults!K51,")") -> (331) | L44: Glastuinbouw | M44: 0.03 | N44: =CONCATENATE(" (",Defaults!Q49*100,"%)") -> (3%) | T44: Stort | U44: 0 | V44: 1
E45: Stikstof [N] (g/kg ds) | F45: 11.9 | G45: =CONCATENATE(" (",Defaults!K52,")") -> (11,9) | L45: Hoveniers | N45: =CONCATENATE(" (",Defaults!Q50*100,"%)") -> (0%)
E46: Fosfaat [P2O5] (g/kg ds) | F46: 6.4 | G46: =CONCATENATE(" (",Defaults!K53,")") -> (6,4) | L46: Particulieren | M46: 0.01 | N46: =CONCATENATE(" (",Defaults!Q51*100,"%)") -> (1%) | Q46: Recycling
E47: Kalium [K2O] (g/kg ds) | F47: 10.5 | G47: =CONCATENATE(" (",Defaults!K54,")") -> (10,5) | L47: Gemeenten (groenvoorziening) | M47: 0.03 | N47: =CONCATENATE(" (",Defaults!Q52*100,"%)") -> (3%) | T47: Inert materiaal als wegophoging/fundering | U47: 0 | V47: 1
L48: Potgrondsubstraten en aanvulgrond | M48: 0.12 | N48: =CONCATENATE(" (",Defaults!Q53*100,"%)") -> (12%) | T48: Ferrometalen naar recycling | U48: 0 | V48: 1
L49: Specifiek samengestelde grondproducten | N49: =CONCATENATE(" (",Defaults!Q54*100,"%)") -> (0%)
L50: Boxcompost | N50: =CONCATENATE(" (",Defaults!Q55*100,"%)") -> (0%)
L51: Aannemerij/wegenbouw | M51: 0.05 | N51: =CONCATENATE(" (",Defaults!Q56*100,"%)") -> (5%)
L52: Anders (w.o. tussenhandel) | M52: =1-SUM(M43:M51) -> 0.07 | N52: =CONCATENATE(" (",Defaults!Q57*100,"%)") -> (7%)
N54: =CONCATENATE("Resultaat voor de totale hoeveelheid verwerkt gft-afval: ",ROUND(CO2resultgealloceerd,0),"") ->  | O54: kg CO2-eq. | U54: =IF(Input!K12=0,"Per ton verwerkt gft-afval: 0",CONCATENATE("Per ton verwerkt gft-afval: ",ROUND(CO2resultpertongealloceerd,0))) -> Per ton verwerkt gft-afval: 0 | V54: kg CO2-equivalenten
N55: =CONCATENATE("Resultaat voor de totale hoeveelheid verwerkt afval: ",ROUND(CO2resultaat,0),"") -> Resultaat voor de totale hoeveelheid verwerkt afval: 0 | O55: kg CO2-eq. | U55: =IF(Input!K12=0,"Per ton verwerkt afval: 0",CONCATENATE("Per ton verwerkt afval: ",ROUND(CO2resultaat_per_ton,0))) -> Per ton verwerkt afval: 0 | V55: kg CO2-equivalenten
C69: Totale hoeveelheid gft | E69: =Input!K14 -> 0
C70: Totale hoeveelheid analoog | E70: =Input!K15 -> 0
C71: Totale hoeveelheid groenafval | E71: =Input!K16 -> 0
C73: waterwassen
C74: aminewassen
C75: membraanfiltratie met CO2-terugwinning
C76: cryogene opwerking
C77: anders (aanname: PSA)
C79: 2
C81: kg | D81: (waarde 1)
C82: ton | D82: (waarde 2)

Sheet Defaults (hidden)
E2: CO2-tool gft-verwerking 2.0 DEFAULTWAARDEN
L4: Gescheiden ingezameld gft-afval | T4: biogaspotentieel
O5: Totale hoeveelheid (ton per jaar) | T5: per deelstroom
T6: (Nm3/ton vers)
O7: Gft(%) | T7: Gft | U7: 75
O8: Analoog (%) | T8: Analoog | U8: 40-200
O9: Groenafval (%) | T9: Groenafval | U9: 40-200
M13: Transport van gft-afval
N14: Ton per jaar | P14: Afstand (km)
C15: WKK | G15: Totale hvh biogas naar WKK (m3) | H15: =(75*'Processen & Producten'!E22)*0.5 -> 0 | M15: Truck | P15: 35
G16: Opbrengst warmte uit WKK (MJ/m3 biogas) | H16: =0.4*21.5 -> 8.6 | M16: Schip | P16: 35
G17: Opbrengst elektriciteit uit WKK (kWh/m3 biogas) | H17: =0.36*21.5/3.6 -> 2.15 | M17: Trein | P17: 35 | V17: Energieverbruik (totaal)
Z18: Elektriciteit, grijs (kWh) | AA18: =32*Input!K12 -> 0
C19: Groen gas | Z19: Elektriciteit, groene stroom mix (kWh)
G20: Totale hvh biogas opgewerkt naar groen gas (m3) | H20: =(75*'Processen & Producten'!E22)*0.5 -> 0 | Z20: Elektriciteit, windenergie (kWh)
G21: Hoeveelheid groen gas (m3/ton gft) | H21: =0.666*'Processen & Producten'!U14 -> 0 | Z21: Elektriciteit, zonne-energie (PV) (kWh)
G22: Percentage levering aan aardgasnet | Z22: Diesel (liter)
G23: Percentage vervanging diesel | K23: Vergisting | P23: Compostering | Z23: Gas (m3) | AA23: =(342/31.8)*Input!K12 -> 0
L24: Hoeveelheid (ton per jaar) | R24: Hoeveelheid (ton per jaar)
C25: Terugwinning warmte uit compostvloeren | L25: CH4 emissie (g/ton gft) | M25: 500 | R25: CH4 emissie (g/ton gft) | S25: 161
G26: Geleverde warmte (MJ/ton gft) | L26: N2O emissie (g/ton gft) | M26: 20 | R26: N2O emissie (g/ton gft) | S26: 72
C29: Residu naar bio-energiecentrale | W29: Surplus water naar RWZI
G30: Hoeveelheid (kg/ton gft) | K30: (na)compostering | Z30: Water (m3)
G31: Calorische waarde (MJ/kg) | H31: 9.3 | L31: Hoeveelheid (ton per jaar) | W31: Residu naar AEC / stort
G32: Rendement thermisch (%) | H32: 0.35 | L32: CH4 emissie (g/ton gft) | Z32: AEC (kg) | AA32: =15*Input!K12 -> 0
G33: Rendement elektrisch (%) | H33: 0.25 | L33: N2O emissie (g/ton gft) | Z33: Stort (kg) | AA33: 0
C36: Alternatieve opwerking
F37: kg (per | I37: Netto kg
D38: Deelstroom | F38: ton gft) | G38: Opwerkingsproces | I38: CO2 eq | M38: Transport van compost
N39: Ton per jaar | P39: Afstand (km)
M40: Enkele vrachtwagen | P40: 30
M41: Vrachtwagen met oplegger | P41: 30
M42: Schip | P42: 30
L46: Compost
J47: Kenmerken Compost | P47: Marktverdeling
J48: Totale opbrengst compost per jaar (ton): | M48: Landbouw (akkerbouw, vollegronds tuinbouw, boomteelt) | Q48: 0.69
J49: Opbrengst (kg/ton afval) | K49: 400 | P49: Glastuinbouw | Q49: 0.03
J50: ds (%) | K50: 67 | P50: Hoveniers
J51: Organische stof (O.S.) (g/kg ds) | K51: 331 | P51: Particulieren | Q51: 0.01
J52: Stikstof [N] (g/kg ds) | K52: 11.9 | P52: Gemeenten (groenvoorziening) | Q52: 0.03
J53: Fosfaat [P2O5] (g/kg ds) | K53: 6.4 | P53: Potgrondsubstraten en aanvulgrond | Q53: 0.12
J54: Kalium [K2O] (g/kg ds) | K54: 10.5 | P54: Specifiek samengestelde grondproducten
P55: Boxcompost
P56: Aannemerij/wegenbouw | Q56: 0.05
P57: Anders (w.o. tussenhandel) | Q57: 0.07

Sheet Kengetallen (hidden)
A1: Startpunt: totale hoeveelheid afvalstromen
D2: =Input!K12 -> 0 | E2: ton | J2: Kleurcode
C3: Gft(%) | D3: =Input!K14/Input!K12 ->  | K3: invoer
C4: Aanaloog (%) | D4: =Input!K15/Input!K12 ->  | K4: berekening
C5: Groenafval (%) | D5: =Input!K16/Input!K12 ->  | K5: geupdate kengetallen
A10: Compost eigenschappen en toepassing
A11: compost | B11: kg compost / jaar | C11: ='Processen & Producten'!J31*1000 -> 0 | D11: N-gehalte | E11: ='Processen & Producten'!F45 -> 11.9 | F11: [N] in g/kg dw
D12: C-gehalte | E12: =0.56*'Processen & Producten'!F44/1000 -> 0.18536 | F12: [C] in kg/kg dw
D13: P-gehalte | E13: ='Processen & Producten'!F46 -> 6.4 | F13: [P2O5] in g/kg dw
D14: K-gehalte | E14: ='Processen & Producten'!F47 -> 10.5 | F14: [K2O] in g/kg dw
B15: %dw | C15: ='Processen & Producten'!F43 -> 67 | D15: % bijdrage aan veenvervanging | E15: % bijdrage aan kunstmest-vervanging | F15: % bijdrage aan koolstofvastlegging | J15: % N beschikbaar voor vervanging | K15: % P beschikbaar voor vervanging | L15: % K beschikbaar voor vervanging
A16: Landbouw (akkerbouw, vollegronds tuinbouw, boomteelt) | B16: % | C16: ='Processen & Producten'!M43 -> 0.69 | D16: 0 | E16: 0.5 | F16: 1 | G16: kunstmestvervanging totaal | H16: =(C16*E16)+(C17*E17)+(C18*E18)+(C19*E19)+(C20*E20)+(C21*E21)+(C22*E22)+(C23*E23)+(C24*E24)+(C25*E25) -> 0.54 | I16: % | J16: 0.749 | K16: 0.9 | L16: 1
A17: Tuinbouw | B17: % | C17: ='Processen & Producten'!M44 -> 0.03 | D17: 1 | E17: 1 | F17: 1 | G17: koolstofvastlegging totaal | H17: =(C16*F16)+(C17*F17)+(C18*F18)+(C19*F19)+(C20*F20)+(C21*F21)+(C22*F22)+(C23*F23)+(C24*F24)+(C25*F25) -> 1 | I17: % | J17: 0.749 | K17: 0.9 | L17: 1
A18: Hoveniers | B18: % | C18: ='Processen & Producten'!M45 -> 0 | D18: 1 | E18: 1 | F18: 1 | G18: veenvervanging totaal | H18: =(C16*D16)+(C17*D17)+(C18*D18)+(C19*D19)+(C20*D20)+(C21*D21)+(C22*D22)+(C23*D23)+(C24*D24)+(C25*D25) -> 0.165 | I18: % | J18: 0.749 | K18: 0.9 | L18: 1
A19: Particulieren | B19: % | C19: ='Processen & Producten'!M46 -> 0.01 | D19: 0 | E19: 1 | F19: 1 | J19: 0.749 | K19: 0.9 | L19: 1
A20: Gemeenten | B20: % | C20: ='Processen & Producten'!M47 -> 0.03 | D20: 0.5 | E20: 0 | F20: 1 | G20: vervangingswaarde compost | H20: 0.83 | I20: kg veen / kg compost | J20: 0.749 | K20: 0.9 | L20: 1
A21: Potgrondproducenten | B21: % | C21: ='Processen & Producten'!M48 -> 0.12 | D21: 1 | E21: 1 | F21: 1 | G21: veenvervanging | H21: =H18*hoeveelheid_compost*H20 -> 0 | I21: kg | J21: 0.15 | K21: 0.9 | L21: 1
A22: Specifieke grondproducten | B22: % | C22: ='Processen & Producten'!M49 -> 0 | D22: 0 | E22: 0 | F22: 1 | J22: 0.749 | K22: 0.9 | L22: 1
A23: Boxcompost | B23: % | C23: ='Processen & Producten'!M50 -> 0 | D23: 0 | E23: 0.5 | F23: 1 | J23: 0.749 | K23: 0.9 | L23: 1
A24: Aannemerij/wegenbouw | B24: % | C24: ='Processen & Producten'!M51 -> 0.05 | D24: 0 | E24: 0 | F24: 1 | J24: 0.749 | K24: 0.9 | L24: 1
A25: Anders (w.o. tussenhandel) | B25: % | C25: ='Processen & Producten'!M52 -> 0.07 | D25: 0 | E25: 0.5 | F25: 1 | J25: 0.749 | K25: 0.9 | L25: 1
I26: % totaal beschikbaar: | J26: =(C16*J16)+(C17*J17)+(C18*J18)+(C19*J19)+(C20*J20)+(C21*J21)+(C22*J22)+(C23*J23)+(C24*J24)+(C25*J25) -> 0.67712 | K26: =(C16*K16)+(C17*K17)+(C18*K18)+(C19*K19)+(C20*K20)+(C21*K21)+(C22*K22)+(C24*K24)+(C25*K25) -> 0.9 | L26: =(C16*L16)+(C17*L17)+(C18*L18)+(C19*L19)+(C20*L20)+(C21*L21)+(C22*L22)+(C24*L24)+(C25*L25) -> 1
A27: Berekening over totale verwerkte hoeveelheid
A28: parameter | B28: eenheid | C28: hoeveelheid | D28: kg CO2-eq. per eenheid | E28: kg CO2-eq. totaal | F28: Opmerkingen (referenties)
A29: transport truck | B29: tkm | C29: =Input!K6*Input!L6 -> 0 | D29: 0.13 | E29: =C29*D29 -> 0 | F29: vrachtauto >20 ton, CO2-prestatieladder v2.1, SKAO
A30: transport schip | B30: tkm | C30: =Input!K7*Input!L7 -> 0 | D30: 0.06 | E30: 0 | F30: Binnenvaart, 200 TEU, CO2-prestatieladder v2.1, SKAO
A31: Transport trein | B31: tkm | C31: =Input!K8*Input!L8 -> 0 | D31: 0.022 | E31: 0 | F31: Trein, combinatie electrische en diesel locs, of onbekend type locs, CO2-prestatieladder v2.1, SKAO
A32: electriciteitsgebruik (grijs) | B32: kWh | C32: =IF(Input!M19=1,Input!L19,Input!L19*1000) -> 0 | D32: 0.455 | E32: =C32*D32 -> 0 | F32: grijze stroom, 2010 en later, CO2-prestatieladder v2.1, SKAO
A33: electriciteitsgebruik (groen mix) | B33: kWh | C33: =IF(Input!M20=1,Input!L20,Input!L20*1000) -> 0 | D33: 0.099076542 | E33: =C33*D33 -> 0 | F33: 1 kWh Electricity, low voltage, at grid/NL - Groene stroom; samenstelling obv SBK database
A34: electriciteitsgebruik (groene stroom met eigen CO2-factor) | B34: kWh | C34: =IF(Input!M21=1,Input!L21,Input!L21*1000) -> 0 | D34: =Input!O21/1000 -> 0.05 | E34: =C34*D34 -> 0 | F34: groene stroom - windkracht, CO2-prestatieladder v2.1, SKAO
A35: electriciteitsgebruik (wind) | B35: kWh | C35: =IF(Input!M23=1,Input!L23,Input!L23*1000) -> 0 | D35: 0.015 | E35: =C35*D35 -> 0 | F35: eigen data gebruiker
A36: electriciteitsgebruik (PV) | B36: kWh | C36: =IF(Input!M24=1,Input!L24,Input!L24*1000) -> 0 | D36: 0.08 | E36: 0 | F36: groene stroom - zonne-energie, CO2-prestatieladder v2.1, SKAO
A37: houtgebruik | B37: kg | C37: =IF(Input!M25=1,Input!L25,Input!L25*1000) -> 0 | D37: 0.035875564 | E37: 0 | F37: Ecoinvent "Wood chips, from industry, mixed, burned in furnace"
A38: dieselverbruik | B38: liter | C38: =Input!L26 -> 0 | D38: 3.135 | E38: 0 | F38: Diesel, CO2-prestatieladder v2.1, SKAO
A39: aardgasverbruik | B39: m3 | C39: =Input!L27 -> 0 | D39: 1.825 | E39: 0 | F39: Aardgas, CO2-prestatieladder v2.1, SKAO
A40: groen gas verbruik | B40: m3 | C40: =Input!L28 -> 0 | D40: =D56 -> 0.714355 | E40: 0 | F40: Ecoinvent "Methane from biogas"
A41: stortgasverbruik | B41: m3 | C41: =Input!L29 -> 0 | D41: 0.4 | E41: 0 | F41: "Biogas (stortgas)", CO2-prestatieladder v2.1, SKAO
A42: verbruik warmte uit AEC | B42: GJ | C42: =Input!L30 -> 0 | D42: 20 | E42: 0 | F42: "Warmtelevering AVI", CO2-prestatieladder v2.1, SKAO
A43: emissie methaan vergisting | B43: g | C43: ='Processen & Producten'!E23*'Processen & Producten'!E22 -> 0 | D43: =22.3/1000 -> 0.0223 | E43: 0 | F43: ref. Tauw 2007
A44: emissie N2O vergisting | B44: g | C44: ='Processen & Producten'!E24*'Processen & Producten'!E22 -> 0 | D44: =298/1000 -> 0.298 | E44: 0 | F44: ref. Tauw 2007
A45: emissie methaan compostering | B45: g | C45: ='Processen & Producten'!L23*('Processen & Producten'!L22-'Processen & Producten'!H24) -> 0 | D45: =22.3/1000 -> 0.0223 | E45: 0 | F45: ref. Tauw 2007
A46: emissie N2O compostering | B46: g | C46: ='Processen & Producten'!L24*('Processen & Producten'!L22-'Processen & Producten'!H24) -> 0 | D46: =298/1000 -> 0.298 | E46: 0 | F46: ref. Tauw 2007
A47: emissie CO2 compostering/vergisting | B47: g | C47: 0 | D47: 0 | F47: CO2 uit gft-afval is biogeen, dus score 0.
A48: Product naar Bio-energiecentrale | B48: kg | C48: ='Processen & Producten'!T26*1000 -> 0 | D48: =0.01636-('Processen & Producten'!T29*'Processen & Producten'!W28*0.0777)-('Processen & Producten'!T30*'Processen & Producten'!W28*0.186) -> 0.1829107 | E48: 0 | F48: afhankelijk van calorische waarde en rendement, uitsparing gebaseerd op Electricity mix/NL en Heat - natural gas - at industrial furnace; emissie gebaseerd op Ecoinvent 'Disposal, wood untreated, incineration'
A49: Emissie WKK (kg CO2eq/m3 biogas) | B49: m3 biogas | C49: ='Processen & Producten'!U9 -> 0 | D49: 0.13619205 | E49: 0 | F49: Meerdere Ecoinvent processen "Electricity, at cogen with biogas engine"
A50: Opbrengst warmte uit WKK | B50: MJ | C50: ='Processen & Producten'!U10 -> 0 | D50: =-D39/31.8 -> -0.05738993711 | E50: 0 | F50: Aardgas, CO2-prestatieladder v2.1, SKAO
A51: Opbrengst elektriciteit uit WKK | B51: kWh | C51: ='Processen & Producten'!U11 -> 0 | D51: =-D32 -> -0.455 | E51: 0 | F51: grijze stroom, 2010 en later, CO2-prestatieladder v2.1, SKAO
A52: Productie groen gas uit biogas, waterwassen | B52: m3 groen gas | C52: =IF('Processen & Producten'!C79=1,'Processen & Producten'!U15,0) -> 0 | D52: 0.3109546 | E52: 0 | F52: Ecoinvent "Methane from biogas"; CH4 emissie aangepast aan garantiewaarden leveranciers; inclusief verbranden gas
A53: Productie groen gas uit biogas, aminewassen | B53: m3 groen gas | C53: =IF('Processen & Producten'!C79=2,'Processen & Producten'!U15,0) -> 0 | D53: 0.23698932 | E53: 0 | F53: Ecoinvent "Methane from biogas"; CH4 emissie aangepast aan garantiewaarden leveranciers; inclusief verbranden gas
A54: Productie groen gas uit biogas, membraanfiltratie | B54: m3 groen gas | C54: =IF('Processen & Producten'!C79=3,'Processen & Producten'!U15,0) -> 0 | D54: 0.23698932 | E54: 0 | F54: Ecoinvent "Methane from biogas"; CH4 emissie aangepast aan garantiewaarden leveranciers; inclusief verbranden gas
A55: Productie groen gas uit biogas, cryogeen | B55: m3 groen gas | C55: =IF('Processen & Producten'!C79=4,'Processen & Producten'!U15,0) -> 0 | D55: 0.3109546 | E55: 0 | F55: Ecoinvent "Methane from biogas"; CH4 emissie aangepast aan garantiewaarden leveranciers; inclusief verbranden gas
A56: Productie groen gas uit biogas, anders (PSA) | B56: m3 groen gas | C56: =IF('Processen & Producten'!C79=5,'Processen & Producten'!U15,0) -> 0 | D56: 0.714355 | E56: 0 | F56: Ecoinvent "Methane from biogas"
A57: CO2-winning uit biogas | B57: kg | C57: ='Processen & Producten'!U17 -> 0 | D57: -1 | E57: =C57*D57 -> 0 | F57: eigen data gebruiker
A58: Percentage levering aan aardgasnet | B58: m3 groen gas | C58: ='Processen & Producten'!U15*'Processen & Producten'!U18 -> 0 | D58: =-D39 -> -1.825 | E58: 0 | F58: Aardgas, CO2-prestatieladder v2.1, SKAO
A59: Percentage vervanging diesel | B59: m3 groen gas | C59: ='Processen & Producten'!U15*'Processen & Producten'!U19 -> 0 | D59: =-D38*(31.8/35.9) -> -2.776963788 | E59: 0 | F59: Omrekenen op basis van calorische waarde
A60: Percentage overige toepassing | B60: m3 groen gas | C60: ='Processen & Producten'!U15*'Processen & Producten'!U20 -> 0 | D60: ='Processen & Producten'!W20 -> 0 | E60: 0 | F60: eigen data gebruiker
A61: Alternatieve opwerking deelstromen | B61: kg CO2 eq | C61: =SUM('Processen & Producten'!V35:V38) -> 0 | D61: 1 | E61: 0 | F61: eigen data gebruiker
A62: Warmteterugwinning (MJ) | B62: MJ | C62: ='Processen & Producten'!U23 -> 0 | D62: =D50 -> -0.05738993711 | E62: 0 | F62: Aardgas, CO2-prestatieladder v2.1, SKAO
A63: Water naar RWZI | B63: m3 | C63: ='Processen & Producten'!U41 -> 0 | D63: =0.23*D32 -> 0.10465 | E63: =C63*D63 -> 0 | F63: Stowa
A64: residue naar AEC | B64: kg | C64: =IF('Processen & Producten'!V43=1,'Processen & Producten'!U43,'Processen & Producten'!U43*1000) -> 0 | D64: 0.084634496 | E64: 0 | F64: Verbranding 'municipal waste' in gemiddelde NL AEC, aanname dat CO2-emissie 50% fossiel is en 50% biogeen. Opwekking warmte en elektriciteit in AEC wordt meegeteld.
A65: residue naar stort | B65: kg | C65: =IF('Processen & Producten'!V44=1,'Processen & Producten'!U44,'Processen & Producten'!U44*1000) -> 0 | D65: 0.0071031036 | E65: 0 | F65: Disposal, inert waste, 5% water, to inert material landfill
A66: residue ingezet als wegfundering | B66: kg | C66: =IF('Processen & Producten'!V47=1,'Processen & Producten'!U47,'Processen & Producten'!U47*1000) -> 0 | D66: -0.0023939005 | E66: =C66*D66 -> 0 | F66: Ecoinvent "Sand, at mine/CH U"
A67: ferrometalen naar recycling | B67: kg | C67: =IF('Processen & Producten'!V48=1,'Processen & Producten'!U48,'Processen & Producten'!U48*1000) -> 0 | D67: -1.4142067 | E67: =C67*D67 -> 0 | F67: Slim Slopen Tool 2.1; Recycling RVS en ijzer. Obv Ecoinvent “Pig iron, at plant/GLO U” voor productie mix vermeden en “Iron scrap, at plant/RER U” voor opwerking. 5% uitval.
A68: transport vrachtwagen met oplegger | B68: tkm | C68: ='Processen & Producten'!H36*'Processen & Producten'!I36 -> 0 | D68: 0.095 | E68: =C68*D68 -> 0 | F68: trekker met oplegger, CO2-prestatieladder v2.1, SKAO
A69: transport naar compost toepassing; enkele vrachtwagen | B69: tkm | C69: ='Processen & Producten'!H37*'Processen & Producten'!I37 -> 0 | D69: 0.13 | E69: =C69*D69 -> 0 | F69: vrachtauto >20 ton, CO2-prestatieladder v2.1, SKAO
A70: Transport schip | B70: tkm | C70: ='Processen & Producten'!H38*'Processen & Producten'!I38 -> 0 | D70: 0.06 | E70: 0 | F70: Binnenvaart, 200 TEU, CO2-prestatieladder v2.1, SKAO
A72: veenvervanging | B72: kg | C72: =H21 -> 0 | D72: -0.85 | E72: =C72*D72 -> 0 | F72: hele keten van veentoepassing: veenproductie (Ecoinvent), 90% emissie koolstof als fossiel CO2, na toepassing op het land.
A73: vervanging veentransport | B73: km | C73: 1000 | F73: veentransport
B74: tkm | C74: =C72*C73/1000 -> 0 | D74: -0.095 | E74: =C74*D74 -> 0 | F74: trekker met oplegger, CO2-prestatieladder v2.1, SKAO
A75: substitutie N-fertilizer | B75: kg | C75: =H16*(E11/1000)*(C15/100)*hoeveelheid_compost*J26 -> 0 | D75: -8.6539883 | E75: 0 | F75: Calcium ammonium nitrate, as N, at regional storehouse/RER
A76: substitutie P-fertilizer | B76: kg | C76: =H16*(E13/1000)*(C15/100)*hoeveelheid_compost*K26 -> 0 | D76: -2.021371 | E76: 0 | F76: Triple superphosphate, as P2O5, at regional storehouse/RER
A77: substitutie K-fertilizer | B77: kg | C77: =H16*(E14/1000)*(C15/100)*hoeveelheid_compost*L26 -> 0 | D77: -0.49735504 | E77: 0 | F77: Potassium chloride, as K2O, at regional storehouse/RER
A78: vermeden emissie N2O door vermeden toepassing kunstmest | B78: g | C78: =E11*C15/100*hoeveelheid_compost*0.0125*(44/28) -> 0 | D78: =-D44 -> -0.298 | E78: 0 | F78: 1.25% van aanwezige N wordt N2O; molmassa N=14, N2O=44, verhouding = 44/(2*14)
A79: emissie N2O bij toepassing compost | B79: g | C79: =E11*C15/100*hoeveelheid_compost*0.0125*(44/28)*0.5 -> 0 | D79: =D44 -> 0.298 | E79: 0 | F79: 50% van de emissie van kunstmest
A80: koolstofvastlegging in grond | B80: kg | C80: =H17*E12*hoeveelheid_compost*(C15/100)*0.1*(44/12) -> 0 | D80: -1 | E80: 0 | F80: 10% van koolstof in compost blijvend vastgelegd in grond.
A85: Resultaten (kg CO2 eq) voor de totale verwerkte hoeveelheid | H85: CO2-score | I85: CO2-score | K85: Resultaten (kg CO2 eq) per hoofdcategorie
D86: allocatie op basis van | F86: massa-fractie gft t.o.v. totaal afval | H86: gealloceerd naar gft-fractie | I86: per ton gft | L86: totaal verwerkte hoeveelheid | M86: gft-fractie | N86: Per ton gft
A87: Transport (aanvoer afval) | B87: =SUM(E29:E31) -> 0 | D87: massa | F87: =Input!K14/Input!K12 ->  | H87: =B87*$F$87 ->  | I87: =H87/Input!$K$14 ->  | K87: Transport | L87: =SUM(B87,B101) -> 0 | M87: =SUM(H87,H101) ->  | N87: =SUM(I87,I101) -> 
A88: Elektriciteitverbruik | B88: =SUM(E32:E36) -> 0 | D88: massa | F88: massa-fractie gft vergister t.o.v. totaal afval vergister | H88: =B88*$F$87 ->  | I88: =H88/Input!$K$14 ->  | K88: Verwerkingsproces | L88: =SUM(B88:B93,B99,B100) -> 0 | M88: =SUM(H88:H93,H99,H100) ->  | N88: =SUM(I88:I93,I99,I100) -> 
A89: Houtgebruik | B89: =E37 -> 0 | D89: massa | F89: ='Processen & Producten'!F16/'Processen & Producten'!E22 ->  | I89: =H89/Input!$K$14 ->  | K89: Product | L89: =SUM(B94:B98,B102:B104) -> 0 | M89: =SUM(H94:H98,H102:H104) ->  | N89: =SUM(I94:I98,I102:I104) -> 
A90: Dieselgebruik | B90: =E38 -> 0 | D90: massa | F90: massa-fractie gft composteren t.o.v. totaal afval composteren | I90: =H90/Input!$K$14 -> 
A91: Gasgebruik | B91: =E39+E40+E41+E42 -> 0 | D91: massa | F91: ='Processen & Producten'!J15/('Processen & Producten'!J15+'Processen & Producten'!J16+'Processen & Producten'!J17) ->  | I91: =H91/Input!$K$14 -> 
A92: Methaan+lachgas emissie vergisten | B92: =E43+E44 -> 0 | D92: massa-% naar vergister + biogaspotentieel | F92: 'energetische fractie' gft t.o.v. totaal afval | H92: =IF('Processen & Producten'!E22=0,0,B92*$F$95) -> 0 | I92: =H92/Input!$K$14 -> 
A93: Methaan+lachgas emissie composteren | B93: =E45+E46 -> 0 | D93: massa-% naar composteren | F93: =(Input!K14*Input!N14)/((Input!K14*Input!N14)+(Input!K15*Input!N15)+(Input!K16*Input!N16)) ->  | H93: =B93*$F$91 ->  | I93: =H93/Input!$K$14 -> 
A94: Product naar Bio-energiecentrale | B94: =E48 -> 0 | D94: massa | F94: 'energetische fractie' gft t.o.v. totaal naar vergister | I94: =H94/Input!$K$14 -> 
A95: Opbrengst WKK | B95: =(E49+E50+E51) -> 0 | D95: massa-% naar vergister + biogaspotentieel | F95: =('Processen & Producten'!F16*Input!N14)/(('Processen & Producten'!F16*Input!N14)+('Processen & Producten'!F17*Input!N15)+('Processen & Producten'!F18*Input!N16)) ->  | H95: =IF('Processen & Producten'!E22=0,0,B95*$F$95) -> 0 | I95: =H95/Input!$K$14 -> 
A96: Opbrengst Groen gas | B96: =SUM(E52:E60) -> 0 | D96: massa-% naar vergister + biogaspotentieel | H96: =IF('Processen & Producten'!E22=0,0,B96*$F$95) -> 0 | I96: =H96/Input!$K$14 -> 
A97: Alternatieve opwerking | B97: =E61 -> 0 | D97: massa-% naar vergister + biogaspotentieel | H97: =IF('Processen & Producten'!E22=0,0,B97*$F$95) -> 0 | I97: =H97/Input!$K$14 -> 
A98: Warmteterugwinning | B98: =E62 -> 0 | D98: massa | H98: =B98*$F$87 ->  | I98: =H98/Input!$K$14 -> 
A99: Water naar RWZI | B99: =E63 -> 0 | D99: massa | H99: =B99*$F$87 ->  | I99: =H99/Input!$K$14 -> 
A100: Residu naar AEC/stort/bouw/ferro recycling | B100: =(E64+E65+E66+E67) -> 0 | D100: massa | I100: =H100/Input!$K$14 -> 
A101: Transport (afvoer compost) | B101: =(E69+E68+E70) -> 0 | D101: massa | I101: =H101/Input!$K$14 -> 
A102: Veenvervanging | B102: =(E72+E74) -> 0 | D102: massa | I102: =H102/Input!$K$14 -> 
A103: Kunstmestvervanging | B103: =SUM(E75:E79) -> 0 | D103: massa | I103: =H103/Input!$K$14 -> 
A104: Koolstofvastlegging | B104: =E80 -> 0 | D104: massa | I104: =H104/Input!$K$14 -> 
A105: Totaal | B105: =SUM(B87:B104) -> 0 | G105: Totaal | H105: =SUM(H87:H104) ->  | K105: Totaal | L105: =SUM(L87:L89) -> 0 | M105: =SUM(M87:M89) ->  | N105: =SUM(N87:N89) -> 
A106: totaal per ton verwerkt afval (niet gealloceerd) | B106: =CO2resultaat/$D$2 ->  | G106: totaal per ton gft | H106: =H105/Input!K14 -> 
A107: (Biogene CO2 emissies compostering/vergisting worden niet meegerekend.)
A110: Resultaten totaal (kg CO2 eq gealloceerd naar gft-fractie) tbv grafiek
B111: Transport (aanvoer afval) | C111: Elektriciteitverbruik | D111: Houtgebruik | E111: Dieselgebruik | F111: Gasgebruik | G111: Methaan+lachgas vergisten | H111: Methaan+lachgas composteren | I111: Product naar Bio-energiecentrale | J111: Opbrengst WKK | K111: Opbrengst Groen gas | L111: Alternatieve opwerking | M111: Warmteterugwinning | N111: Water naar RWZI | O111: Residu naar AEC/stort/bouw/ferro recycling | P111: Transport (afvoer compost) | Q111: Veenvervanging | R111: Kunstmestvervanging | S111: Koolstofvastlegging
A112: Transport (aanvoer afval) | B112: =H87 -> 
A113: Elektriciteitverbruik | C113: =H88 -> 
A114: Houtgebruik | D114: =H89 -> 
A115: Dieselgebruik | E115: =H90 -> 
A116: Gasgebruik | F116: =H91 -> 
A117: Methaan+lachgas vergisten | G117: =H92 -> 0
A118: Methaan+lachgas composteren | H118: =H93 -> 
A119: Product naar Bio-energiecentrale | I119: =H94 -> 
A120: Opbrengst WKK | J120: =H95 -> 0
A121: Opbrengst Groen gas | K121: =H96 -> 0
A122: Alternatieve opwerking | L122: =H97 -> 0
A123: Warmteterugwinning | M123: =H98 -> 
A124: Water naar RWZI | N124: =H99 -> 
A125: Residu naar AEC/stort/bouw/ferro recycling | O125: =H100 -> 
A126: Transport (afvoer compost) | P126: =H101 -> 
A127: Compost | Q127: =H102 ->  | R127: =H103 ->  | S127: =H104 -> 
A130: Totaal | B130: 34.46998903
A169: Resultaten per hoofdcategorie (kg CO2 eq) tbv grafiek
B171: Transport | C171: Verwerkingsproces | D171: Product
A172: Transport | B172: =M87 -> 
A173: Verwerkingsproces | C173: =M88 -> 
A174: Product | D174: =M89 -> 
A206: Resultaten per ton gft afval (kg CO2 eq gealloceerd naar gft-fractie) tbv grafiek
B207: Transport (aanvoer afval) | C207: Elektriciteitverbruik | D207: Houtgebruik | E207: Dieselgebruik | F207: Gasgebruik | G207: Methaan+lachgas emissie vergisten | H207: Methaan+lachgas emissie composteren | I207: Product naar Bio-energiecentrale | J207: Opbrengst WKK | K207: Opbrengst Groen gas | L207: Alternatieve opwerking | M207: Warmteterugwinning | N207: Water naar RWZI | O207: Residu naar AEC/stort/bouw/ferro recycling | P207: Transport (afvoer compost) | Q207: Veenvervanging | R207: Kunstmestvervanging | S207: Koolstofvastlegging
A208: Transport (aanvoer afval) | B208: =I87 -> 
A209: Elektriciteitverbruik | C209: =I88 -> 
A210: Houtgebruik | D210: =I89 -> 
A211: Dieselgebruik | E211: =I90 -> 
A212: Gasgebruik | F212: =I91 -> 
A213: Methaan+lachgas emissie vergisten | G213: =I92 -> 
A214: Methaan+lachgas emissie composteren | H214: =I93 -> 
A215: Product naar Bio-energiecentrale | I215: =I94 -> 
A216: Opbrengst WKK | J216: =I95 -> 
A217: Opbrengst Groen gas | K217: =I96 -> 
A218: Alternatieve opwerking | L218: =I97 -> 
A219: Warmteterugwinning | M219: =I98 -> 
A220: Water naar RWZI | N220: =I99 -> 
A221: Residu naar AEC/stort/bouw/ferro recycling | O221: =I100 -> 
A222: Transport (afvoer compost) | P222: =I101 -> 
A223: Compost | Q223: =I102 ->  | R223: =I103 ->  | S223: =I104 -> 
A267: Resultaten per hoofdcategorie per ton gft-afval (kg CO2 eq) tbv grafiek
B269: Transport | C269: Verwerkingsproces | D269: Product | E269: Totaal
A270: Transport | B270: =N87 -> 
A271: Verwerkingsproces | C271: =N88 -> 
A272: Product | D272: =N89 -> 
A273: Totaal | E273: =SUM(B270,C271,D272) -> 

Sheet Resultaat
D2: CO2-tool gft-verwerking 2.0
B4: Bedrijf: | D4: =Naam_bedrijf -> 0
B5: Locatie: | D5: =Locatie -> 0
B6: Jaar: | D6: =jaartal -> 0
B9: Massabalans
B10: Aanvoer | F10: ton | G10: %
B11: aanvoer totaal | F11: =Input!K12 -> 0
B12: waarvan input vergister | F12: ='Processen & Producten'!E22 -> 0 | G12: =F12/F11 -> 
B14: Afvoer | F14: ton | G14: %
B15: GFT-compost | F15: ='Processen & Producten'!J31 -> 0 | G15: =F15/$F$11 -> 
B16: biogas | F16: =('Processen & Producten'!U9+'Processen & Producten'!U14)*1.15*0.001 -> 0
B17: biomassa naar BEC | F17: =Kengetallen!C48/1000 -> 0
B18: residu AEC | F18: =Kengetallen!C64/1000 -> 0
B19: proceswater (extern) | F19: ='Processen & Producten'!U41 -> 0
B20: bouwstof/inert/stort | F20: =SUM(Kengetallen!C65,Kengetallen!C66)/1000 -> 0
B21: schroot/Ferro | F21: =Kengetallen!C67/1000 -> 0
B22: afvoer totaal | F22: =SUM(F15:F21) -> 0
B23: afbraak materiaal (omzetting H2O, CO2, CH4, sporen) | G23: =1-G22 -> 
B25: Energiebalans
B26: Verbruik | E26: totaal | F26: per ton gft | G26: MJ per ton gft
B27: Elektriciteit (kWh) | E27: =SUM(Kengetallen!C32:C36) -> 0 | F27: =E27/Input!$K$12 ->  | G27: =F27*3.6 -> 
B28: Gas (m3) | E28: =Kengetallen!C39+Kengetallen!C40 -> 0 | F28: =E28/Input!$K$12 ->  | G28: =F28*31.65 -> 
B29: Diesel (liter) | E29: =Kengetallen!C38 -> 0 | F29: =E29/Input!$K$12 ->  | G29: =F29*36 -> 
B30: Totaal (MJ/ton gft) | G30: =SUM(G27:G29) -> 
B32: Opbrengst | E32: totaal | F32: per ton gft | G32: MJ per ton gft
B33: Biogas (ruw, m3) | E33: ='Processen & Producten'!U9+'Processen & Producten'!U14 -> 0 | F33: =E33/Input!$K$12 -> 
B34: Warmte uit wkk (MJ) | E34: =Kengetallen!C50 -> 0 | F34: =E34/Input!$K$12 ->  | G34: =F34 -> 
B35: Elektriciteit uit wkk (kWh) | E35: =Kengetallen!C51 -> 0 | F35: =E35/Input!$K$12 ->  | G35: =F35*3.6 -> 
B36: Groengas (m3) | E36: =SUM(Kengetallen!C52:C56) -> 0 | F36: =E36/Input!$K$12 ->  | G36: =F36*31.65 -> 
B37: Warmteterugwinning (MJ) | E37: =Kengetallen!C62 -> 0 | F37: =E37/Input!$K$12 ->  | G37: =F37 -> 
B38: Totaal (MJ/ton gft) | G38: =SUM(G34:G37) -> 
R40: =CONCATENATE("Resultaat voor de totale hoeveelheid verwerkt gft-afval: ",ROUND(CO2resultgealloceerd,0),"") ->  | S40: kg CO2-eq. | AC40: =IF(Input!K12=0,"Per ton verwerkt gft-afval: 0",CONCATENATE("Per ton verwerkt gft-afval: ",ROUND(CO2resultpertongealloceerd,0))) -> Per ton verwerkt gft-afval: 0 | AD40: kg CO2-equivalenten
R41: =CONCATENATE("Resultaat voor de totale hoeveelheid verwerkt afval: ",ROUND(CO2resultaat,0),"") -> Resultaat voor de totale hoeveelheid verwerkt afval: 0 | S41: kg CO2-eq. | AC41: =IF(Input!K12=0,"Per ton verwerkt afval: 0",CONCATENATE("Per ton verwerkt afval: ",ROUND(CO2resultaat_per_ton,0))) -> Per ton verwerkt afval: 0 | AD41: kg CO2-equivalenten

Sheet Invoerscherm groentool (hidden)
D2: CO2-tool opwerking groene reststromen 1.1
I4: Transport van groenafval | Q4: Bedrijf: | R4: =CONCATENATE(Naam_bedrijf, ", ",Locatie) -> ,
L5: Ton per jaar | M5: Afstand (km) | Q5: Jaar: | R5: =jaartal -> 0
K6: Zwaar transport (truck) | M6: 35 | N6: =CONCATENATE(" (",Defaults!M6," km)") -> ( km) | Q6: =IF(T7=1,"Werkt volgens best practice","Werkt niet volgens best practice") -> 
K7: Licht transport (bestelbus met aanhanger) | M7: 20 | N7: =CONCATENATE(" (",Defaults!M7," km)") -> ( km) | T7: =IF(AND(Welkom!#REF!=TRUE,Welkom!#REF!=TRUE,Welkom!#REF!=TRUE,Welkom!#REF!=TRUE,Welkom!#REF!=TRUE,Welkom!#REF!=TRUE),1,0) -> 
K8: Tractor met aanhanger | M8: 10 | N8: =CONCATENATE(" (",Defaults!M8," km)") -> ( km)
J11: Aangeleverd groenafval of deelstromen daaruit
L12: Totale hoeveelheid (ton per jaar) | M12: 40
C13: Energieverbruik
F14: Elektriciteit, grijs (kWh/ton groenafval) | L14: Hout (%)
F15: Elektriciteit, groene stroom mix (kWh/ton groenafval) | L15: Gras (%)
F16: Elektriciteit, windenergie (kWh/ton groenafval) | L16: Blad (%)
F17: Elektriciteit, zonne-energie (PV) (kWh/ton groenafval) | L17: Tuinbouwafval (%) | Q17: Samenstelling tijdens composteren:
F18: Diesel (liter/ton groenafval) | L18: Overig (%) | M18: =1-SUM(M14:M17) -> 1 | R18: Hout-achtig (kg/ton) | S18: =M14*1000-C82 -> 0 | T18: =S18/SUM(S$18:S$19) -> 0
F19: Gas (m3/ton groenafval) | R19: Niet-hout (kg/ton) | S19: =SUM(M15:M18)*1000-C84 -> 1000 | T19: =S19/SUM(S$18:S$19) -> 1
C21: Hout naar bio-energiecentrale
F22: Hout, afgescheiden vóór compostering (kg/ton groenafval) | P22: Alternatieve opwerking overige deelstromen
F23: Hout, afgescheiden na compostering (kg/ton groenafval) | S23: kg
F24: Calorische waarde hout (MJ/kg) | G24: 9.3 | H24: =CONCATENATE(" (",Defaults!G24,")") -> () | S24: (per ton | W24: Netto kg
F25: Rendement thermisch (%) | G25: 0.6 | H25: =CONCATENATE(" (",Defaults!G25*100,"%)") -> (0%) | Q25: Deelstroom | S25: groenafval) | T25: Opwerkingsproces | W25: CO2 eq
F26: Rendement elektrisch (%) | G26: 0 | H26: =CONCATENATE(" (",Defaults!G26*100,"%)") -> 
C28: Gras naar co-vergister | G28: Opbrengst
F29: kg gras | G29: (m3
F30: /ton groenafval | G30: biogas /ton gras)
E31: Gras naar vergisting met opwekking elektriciteit | G31: 77 | H31: =CONCATENATE(" (",Defaults!G31," m3/ton)") -> (Calorische waarde (MJ/kg) m3/ton) | P31: Surplus water naar RWZI
E32: Gras naar vergisting met productie groen gas | G32: 77 | H32: =CONCATENATE(" (",Defaults!G32," m3/ton)") -> (Rendement thermisch (%) m3/ton) | S32: Water (m3/ton groenafval)
P34: Residu naar AVI / stort
C35: Zeefgrond | S35: AVI (kg/ton groenafval) | T35: 15 | U35: =CONCATENATE(" (",Defaults!T35,")") -> ()
F36: Zeefgrond (kg/ton groenafval) | S36: Stort (kg/ton groenafval) | T36: 0 | U36: =CONCATENATE(" (",Defaults!T36,")") -> ()
C38: Terugwinning warmte uit compostvloeren
F39: Geleverde warmte (MJ/ton groenafval)
I41: Transport van compost
K42: Ton per jaar | L42: Afstand (km)
J43: Enkele vrachtwagen | L43: 30 | M43: =CONCATENATE(" (",Defaults!L43," km)") -> ( km)
J44: Dubbele vrachtwagen | L44: 30 | M44: =CONCATENATE(" (",Defaults!L44," km)") -> ( km)
J45: Tractor met aanhanger | L45: 10 | M45: =CONCATENATE(" (",Defaults!M46," km)") -> ( km)
H48: Compost
F49: Kenmerken Compost | K49: Marktverdeling
F50: Opbrengst (kg/ton groenafval) | G50: 1 | I50: Landbouw (akkerbouw, vollegronds tuinbouw, boomteelt) | L50: 1 | M50: =CONCATENATE(" (",Defaults!L50*100,"%)") -> (0%)
F51: Totale opbrengst compost per jaar (kg): | G51: =G50*M12 -> 40 | K51: Glastuinbouw | L51: 0 | M51: =CONCATENATE(" (",Defaults!L51,")") -> ()
F52: ds (%) | K52: Hoveniers, particulieren | L52: 0 | M52: =CONCATENATE(" (",Defaults!L52,")") -> ()
F53: Stikstof [N] (g/kg ds) | K53: Gemeenten (groenvoorziening) | L53: 0 | M53: =CONCATENATE(" (",Defaults!L53,")") -> ()
F54: Fosfaat [P2O5] (g/kg ds) | K54: Potgrondsubstraten en aanvulgrond | L54: 0 | M54: =CONCATENATE(" (",Defaults!L54,")") -> ()
F55: Kalium [K2O] (g/kg ds) | K55: Specifiek samengestelde grondproducten | L55: 0 | M55: =CONCATENATE(" (",Defaults!L55,")") -> ()
F56: Organische stof (O.S.) (g/kg ds) | K56: Aannemerij/wegenbouw | L56: 0 | M56: =CONCATENATE(" (",Defaults!L59,")") -> ()
K57: Anders (w.o. tussenhandel) | L57: =1-SUM(L50:L56) -> 0 | M57: =CONCATENATE(" (",Defaults!L57,")") -> ()
Q58: =IF(T7=1,"","Resultaat niet betrouwbaar. Werkt niet volgens best practice.") -> 
L59: =CONCATENATE("Resultaat: ",ROUND(CO2resultaat,0),"") -> Resultaat: 0 | M59: kg CO2-equivalenten | R59: =IF(M12=0,"(0",CONCATENATE("(",ROUND(CO2resultaat_per_ton,0))) ->  | S59: kg CO2-equivalenten per ton groenafval)
C74: Lijst:
C75: Hout
C76: Gras
C77: Blad
C78: Tuinbouwafval
C79: Overig
C81: Hout afgescheiden in voorbewerking:
C82: =SUMIF(Q26:R29,"Hout",S26:S29)+IF(C91=C87,G22,0)+M14*G36 -> 0
C83: Overige stromen afgescheiden in voorbewerking (zeefgrond wordt deels aan de houtfractie, deels aan de overige fractie toegerekend).
C84: =SUM(S26:S29)-SUMIF(Q26:R29,"Hout",S26:S29)+F32+SUM(M15:M18)*G36 -> 0
